fUST/lending_fUST_20240822
["ID","MTS","AMOUNT","RATE_DAILY","PERIOD"]
[335521615,1724301064553,-500.0,0.00021369,7]
[335521616,1724301064564,-370.6269462,0.00021369,7]
[335521617,1724301064574,-500.0,0.00021369,7]
[335521618,1724301064585,-500.0,0.00021369,7]
[335521619,1724301064595,-506.23223471,0.00021369,7]
[335521620,1724301064606,-500.0,0.00021369,7]
[335521621,1724301064617,-500.0,0.00021369,7]
[335521622,1724301064627,-500.0,0.00021369,7]
[335521623,1724301064639,-500.0,0.00021369,7]
[335521624,1724301064651,-500.0,0.00021369,7]
[335521625,1724301064662,-500.0,0.00021369,7]
[335521626,1724301064672,-500.0,0.00021369,7]
[335521627,1724301064684,-500.0,0.00021369,7]
[335521628,1724301064695,-500.0,0.00021369,7]
[335521629,1724301064705,-500.0,0.00021369,7]
[335521630,1724301064714,-500.0,0.00021369,7]
[335521631,1724301064727,-2489.9,0.00021369,7]
[335521632,1724301064738,-500.0,0.00021369,7]
[335521633,1724301064749,-500.0,0.00021369,7]
[335521634,1724301064760,-500.0,0.00021369,7]
[335521635,1724301064770,-500.0,0.00021369,7]
[335521636,1724301064780,-500.0,0.00021369,7]
[335521637,1724301064791,-500.0,0.00021369,7]
[335521638,1724301064802,-518.99,0.00021369,7]
[335521639,1724301064813,-500.0,0.00021369,7]
[335521640,1724301064824,-821.02,0.00021369,7]
[335521641,1724301064835,-500.0,0.00021369,7]
[335521642,1724301064844,-500.0,0.00021369,7]
[335521643,1724301064852,-500.0,0.00021369,7]
[335521644,1724301064861,-500.0,0.00021369,7]
[335521645,1724301064870,-576.78,0.00021369,7]
[335521646,1724301064880,-387.42978981,0.00021369,7]
[335521647,1724301064892,-500.0,0.00021369,7]
[335521648,1724301064903,-500.0,0.00021369,7]
[335521649,1724301064913,-500.0,0.00021369,7]
[335521650,1724301064924,-500.0,0.00021369,7]
[335521651,1724301064938,-844.9,0.00021369,7]
[335521652,1724301064948,-500.0,0.00021369,7]
[335521653,1724301064959,-604.62,0.00021369,7]
[335521654,1724301064969,-500.0,0.00021369,7]
[335521655,1724301064980,-500.0,0.00021369,7]
[335521656,1724301064990,-500.0,0.00021369,7]
[335521657,1724301065001,-500.0,0.00021369,7]
[335521658,1724301065011,-500.0,0.00021369,7]
[335521659,1724301065022,-2156.17,0.00021369,7]
[335521660,1724301065033,-500.0,0.00021369,7]
[335521661,1724301065043,-642.95750873,0.00021369,7]
[335521662,1724301065052,-500.0,0.00021369,7]
[335521663,1724301065063,-500.0,0.00021369,7]
[335521664,1724301065073,-500.0,0.00021369,7]
[335521665,1724301065083,-537.9,0.00021369,7]
[335521666,1724301065094,-500.0,0.00021369,7]
[335521667,1724301065105,-418.10703697,0.00021369,7]
[335521668,1724301065116,-500.0,0.00021369,7]
[335521669,1724301065126,-500.0,0.00021369,7]
[335521670,1724301065136,-598.79,0.00021369,7]
[335521671,1724301065146,-586.0,0.00021369,7]
[335521672,1724301065156,-500.0,0.00021369,7]
[335521673,1724301065167,-500.0,0.00021369,7]
[335521674,1724301065176,-729.05,0.00021369,7]
[335521675,1724301065188,-500.0,0.00021369,7]
[335521676,1724301065198,-638.49,0.00021369,7]
[335521677,1724301065208,-500.0,0.00021369,7]
[335521678,1724301065218,-500.0,0.00021369,7]
[335521679,1724301065228,-598.56,0.00021369,7]
[335521680,1724301065239,-865.41,0.00021369,7]
[335521681,1724301065248,-500.0,0.00021369,7]
[335521682,1724301065258,-500.0,0.00021369,7]
[335521683,1724301065268,-1875.93,0.00021369,7]
[335521684,1724301065278,-500.0,0.00021369,7]
[335521685,1724301065288,-500.0,0.00021369,7]
[335521686,1724301065298,-859.92,0.00021369,7]
[335521687,1724301065308,-500.0,0.00021369,7]
[335521688,1724301065318,-500.0,0.00021369,7]
[335521689,1724301065328,-727.29,0.00021369,7]
[335521690,1724301065338,-500.0,0.00021369,7]
[335521691,1724301065347,-500.0,0.00021369,7]
[335521692,1724301065357,-560.76,0.00021369,7]
[335521693,1724301065367,-500.0,0.00021369,7]
[335521694,1724301065376,-500.0,0.00021369,7]
[335521695,1724301065387,-500.0,0.00021369,7]
[335521696,1724301065397,-500.0,0.00021369,7]
[335521697,1724301065407,-500.0,0.00021369,7]
[335521698,1724301065417,-414.51613298,0.00021369,7]
[335521699,1724301065428,-500.0,0.00021369,7]
[335521700,1724301065439,-500.0,0.00021369,7]
[335521701,1724301065449,-500.0,0.00021369,7]
[335521702,1724301065458,-500.0,0.00021369,7]
[335521703,1724301065468,-500.0,0.00021369,7]
[335521704,1724301065477,-2365.95,0.00021369,7]
[335521705,1724301065487,-500.0,0.00021369,7]
[335521706,1724301065497,-500.0,0.00021369,7]
[335521707,1724301065507,-2542.88,0.00021369,7]
[335521708,1724301065518,-500.0,0.00021369,7]
[335521709,1724301065528,-500.0,0.00021369,7]
[335521710,1724301065537,-626.6,0.00021369,7]
[335521711,1724301065547,-500.0,0.00021369,7]
[335521712,1724301065557,-500.0,0.00021369,7]
[335521713,1724301065566,-500.0,0.00021369,7]
[335521714,1724301065576,-500.0,0.00021369,7]
[335521715,1724301065586,-500.0,0.00021369,7]
[335521716,1724301065596,-500.0,0.00021369,7]
[335521717,1724301065606,-500.0,0.00021369,7]
[335521718,1724301065616,-153.82923963,0.00021369,7]
[335521719,1724301065626,-745.34,0.00021369,7]
[335521720,1724301065637,-1229.2,0.00021369,7]
[335521721,1724301065648,-500.0,0.00021369,7]
[335521722,1724301065657,-500.0,0.00021369,7]
[335521723,1724301065667,-500.0,0.00021369,7]
[335521724,1724301065677,-500.0,0.00021369,7]
[335521725,1724301065688,-500.0,0.00021369,7]
[335521726,1724301065698,-500.0,0.00021369,2]
[335521727,1724301065708,-1421.87,0.00021369,7]
[335521728,1724301065720,-500.0,0.00021369,7]
[335521729,1724301065731,-500.0,0.00021369,7]
[335521730,1724301065741,-500.0,0.00021369,7]
[335521731,1724301065750,-500.0,0.00021369,7]
[335521732,1724301065760,-500.0,0.00021369,7]
[335521733,1724301065770,-500.0,0.00021369,7]
[335521734,1724301065781,-500.0,0.00021369,7]
[335521735,1724301065791,-500.0,0.00021369,7]
[335521736,1724301065800,-395.25846639,0.00021369,7]
[335521737,1724301065810,-500.0,0.00021369,7]
[335521738,1724301065820,-586.07,0.00021369,7]
[335521739,1724301065829,-500.0,0.00021369,7]
[335521740,1724301065840,-500.0,0.00021369,7]
[335521741,1724301065850,-500.0,0.00021369,7]
[335521742,1724301065861,-500.0,0.00021369,7]
[335521743,1724301065871,-500.0,0.00021369,7]
[335521744,1724301065880,-500.0,0.00021369,7]
[335521745,1724301065890,-500.0,0.00021369,7]
[335521746,1724301065899,-500.0,0.00021369,7]
[335521747,1724301065909,-3159.86,0.00021369,7]
[335521748,1724301065920,-500.0,0.00021369,7]
[335521749,1724301065930,-500.0,0.00021369,7]
[335521750,1724301065942,-500.0,0.00021369,7]
[335521751,1724301065952,-500.0,0.00021369,7]
[335521752,1724301065961,-500.0,0.00021369,7]
[335521753,1724301065971,-504.35628686,0.00021369,7]
[335521754,1724301065981,-500.0,0.00021369,7]
[335521755,1724301065991,-5188.02,0.00021369,7]
[335521756,1724301066002,-796.12,0.00021369,7]
[335521757,1724301066012,-500.0,0.00021369,7]
[335521758,1724301066021,-500.0,0.00021369,7]
[335521759,1724301066032,-1116.7,0.00021369,7]
[335521760,1724301066041,-500.0,0.00021369,7]
[335521761,1724301066052,-500.0,0.00021369,7]
[335521762,1724301066062,-500.0,0.00021369,7]
[335521763,1724301066072,-500.0,0.00021369,7]
[335521764,1724301066082,-500.0,0.00021369,7]
[335521765,1724301066092,-12079.38,0.00021369,7]
[335521766,1724301066102,-500.0,0.00021369,7]
[335521767,1724301066112,-3687.12,0.00021369,7]
[335521768,1724301066131,-500.0,0.00021369,7]
[335521769,1724301066142,-500.0,0.00021369,7]
[335521770,1724301066152,-346.48780574,0.00021369,7]
[335521771,1724301066163,-500.0,0.00021369,7]
[335521772,1724301066173,-500.0,0.00021369,7]
[335521773,1724301066184,-5616.34,0.00021369,7]
[335521774,1724301066193,-500.0,0.00021369,7]
[335521775,1724301066203,-622.13,0.00021369,7]
[335521776,1724301066213,-500.0,0.00021369,7]
[335521777,1724301066224,-20233.42,0.00021369,7]
[335521778,1724301066234,-2792.0,0.00021369,7]
[335521779,1724301066244,-500.0,0.00021369,7]
[335521780,1724301066254,-9511.85,0.00021369,7]
[335521781,1724301066264,-1146.19,0.00021369,7]
[335521782,1724301066274,-2104.35,0.00021369,7]
[335521783,1724301066285,-500.0,0.00021369,7]
[335521784,1724301066295,-500.0,0.00021369,7]
[335521785,1724301066305,-500.0,0.00021369,7]
[335521786,1724301066316,-500.0,0.00021369,7]
[335521787,1724301066326,-500.0,0.00021369,7]
[335521788,1724301066336,-582.69,0.00021369,7]
[335521789,1724301066346,-500.0,0.00021369,7]
[335521790,1724301066356,-500.0,0.00021369,7]
[335521791,1724301066366,-500.0,0.00021369,7]
[335521792,1724301066376,-500.0,0.00021369,7]
[335521793,1724301066386,-500.0,0.00021369,7]
[335521794,1724301066396,-500.0,0.00021369,7]
[335521795,1724301066406,-500.0,0.00021369,7]
[335521796,1724301066416,-500.0,0.00021369,7]
[335521797,1724301066426,-500.0,0.00021369,7]
[335521798,1724301066438,-228.500444,0.00021369,7]
[335521799,1724301066449,-500.0,0.00021369,7]
[335521800,1724301066459,-500.0,0.00021369,7]
[335521801,1724301066469,-2508.45,0.00021369,7]
[335521802,1724301066479,-500.0,0.00021369,7]
[335521803,1724301066489,-2530.18,0.00021369,7]
[335521804,1724301066499,-930.2,0.00021369,7]
[335521805,1724301066509,-500.0,0.00021369,7]
[335521806,1724301066519,-500.0,0.00021369,7]
[335521807,1724301066530,-538.41101834,0.00021369,7]
[335521808,1724301066539,-500.0,0.00021369,7]
[335521809,1724301066549,-1473.89,0.00021369,7]
[335521810,1724301066560,-500.0,0.00021369,7]
[335521811,1724301066573,-1024.08,0.00021369,7]
[335521812,1724301066583,-500.0,0.00021369,7]
[335521813,1724301066594,-500.0,0.00021369,7]
[335521814,1724301066604,-500.0,0.00021369,7]
[335521815,1724301066614,-500.0,0.00021369,7]
[335521816,1724301066625,-578.87,0.00021369,7]
[335521817,1724301066638,-500.0,0.00021369,7]
[335521818,1724301066650,-2995.68,0.00021369,7]
[335521819,1724301066660,-500.0,0.00021369,7]
[335521820,1724301066670,-500.0,0.00021369,7]
[335521821,1724301066681,-1700.92,0.00021369,7]
[335521822,1724301066692,-500.0,0.00021369,7]
[335521823,1724301066702,-500.0,0.00021369,7]
[335521824,1724301066713,-500.0,0.00021369,7]
[335521825,1724301066724,-500.0,0.00021369,7]
[335521826,1724301066734,-1516.78,0.00021369,7]
[335521827,1724301066745,-1746.1,0.00021369,7]
[335521828,1724301066755,-500.0,0.00021369,7]
[335521829,1724301066766,-500.0,0.00021369,7]
[335521830,1724301066777,-500.0,0.00021369,7]
[335521831,1724301066789,-500.0,0.00021369,7]
[335521832,1724301067024,-500.0,0.00021369,7]
[335521833,1724301067034,-500.0,0.00021369,7]
[335521834,1724301067043,-9014.83,0.00021369,7]
[335521835,1724301067052,-500.0,0.00021369,7]
[335521836,1724301067061,-500.0,0.00021369,7]
[335521837,1724301067070,-222.68857607,0.00021369,7]
[335521838,1724301067079,-500.0,0.00021369,7]
[335521839,1724301067089,-500.0,0.00021369,7]
[335521840,1724301067098,-2151.56,0.00021369,7]
[335521841,1724301067107,-500.0,0.00021369,7]
[335521842,1724301067116,-733.58,0.00021369,7]
[335521843,1724301067125,-500.0,0.00021369,7]
[335521844,1724301067134,-500.0,0.00021369,7]
[335521845,1724301067144,-500.0,0.00021369,7]
[335521846,1724301067153,-500.0,0.00021369,7]
[335521847,1724301067162,-500.0,0.00021369,7]
[335521848,1724301067172,-500.0,0.00021369,7]
[335521849,1724301067181,-863.24,0.00021369,7]
[335521850,1724301067192,-635.96,0.00021369,7]
[335521851,1724301067201,-500.0,0.00021369,7]
[335521852,1724301067210,-2005.19,0.00021369,7]
[335521853,1724301067219,-500.0,0.00021369,2]
[335521854,1724301067228,-500.0,0.00021369,7]
[335521855,1724301067238,-500.0,0.00021369,7]
[335521856,1724301067250,-500.0,0.00021369,7]
[335521857,1724301067261,-275.0302516,0.00021369,7]
[335521858,1724301067270,-500.0,0.00021369,7]
[335521859,1724301067279,-648.12,0.00021369,7]
[335521860,1724301067289,-500.0,0.00021369,7]
[335521861,1724301067298,-616.29266316,0.00021369,7]
[335521862,1724301067307,-912.69,0.00021369,7]
[335521863,1724301067317,-3577.9,0.00021369,7]
[335521864,1724301067327,-799.92,0.00021369,7]
[335521865,1724301067336,-215.73696296,0.00021369,7]
[335521866,1724301067346,-500.0,0.00021369,7]
[335521867,1724301067355,-1034.94,0.00021369,7]
[335521868,1724301067365,-807.61,0.00021369,7]
[335521869,1724301067374,-500.0,0.00021369,7]
[335521870,1724301067384,-508.07,0.00021369,7]
[335521871,1724301067394,-500.0,0.00021369,7]
[335521872,1724301067404,-500.0,0.00021369,7]
[335521873,1724301067413,-521.09,0.00021369,7]
[335521874,1724301067423,-500.0,0.00021369,7]
[335521875,1724301067434,-500.0,0.00021369,7]
[335521876,1724301067443,-500.0,0.00021369,7]
[335521877,1724301067453,-158.5317109,0.00021369,7]
[335521878,1724301067462,-500.0,0.00021369,7]
[335521879,1724301067472,-500.0,0.00021369,7]
[335521880,1724301067481,-500.0,0.00021369,7]
[335521881,1724301067491,-500.0,0.00021369,7]
[335521882,1724301067500,-500.0,0.00021369,7]
[335521883,1724301067510,-543.35,0.00021369,7]
[335521884,1724301067521,-2199.0,0.00021369,7]
[335521885,1724301067534,-1134.35,0.00021369,7]
[335521886,1724301067544,-500.0,0.00021369,7]
[335521887,1724301067555,-733.53,0.00021369,7]
[335521888,1724301067567,-500.0,0.00021369,2]
[335521889,1724301067577,-500.0,0.00021369,7]
[335521890,1724301067586,-500.0,0.00021369,7]
[335521891,1724301067597,-500.0,0.00021369,7]
[335521892,1724301067609,-500.0,0.00021369,7]
[335521893,1724301067620,-500.0,0.00021369,7]
[335521894,1724301067630,-741.48,0.00021369,7]
[335521895,1724301067641,-250.0,0.00021373,2]
[335521896,1724301067651,-450.0,0.00021416,2]
[335521897,1724301067661,-4427.0,0.00021434,2]
[335521898,1724301067670,-161.0,0.0002152,6]
[335521899,1724301067680,-2000.0,0.00021724,2]
[335521900,1724301067691,-153.0,0.00021781,2]
[335521901,1724301067701,-153.0,0.00021781,2]
[335521902,1724301067712,-153.0,0.00021781,2]
[335521903,1724301067722,-153.0,0.00021781,2]
[335521904,1724301067732,-153.0,0.00021781,2]
[335521905,1724301067742,-151.558,0.00021838,2]
[335521906,1724301067751,-522.0,0.00021838,2]
[335521907,1724301067760,-15456.0,0.00021838,2]
[335521908,1724301067771,-1416.0,0.00021838,2]
[335521909,1724301067781,-500.0,0.00021917,7]
[335521910,1724301067791,-500.0,0.00021917,7]
[335521911,1724301067801,-500.0,0.00021917,7]
[335521912,1724301067810,-500.0,0.00021917,7]
[335521913,1724301067820,-500.0,0.00021917,7]
[335521914,1724301067837,-500.0,0.00021917,7]
[335521915,1724301067852,-500.0,0.00021917,7]
[335521916,1724301067864,-500.0,0.00021917,7]
[335521917,1724301067875,-500.0,0.00021917,7]
[335521918,1724301067885,-500.0,0.00021917,7]
[335521919,1724301067895,-500.0,0.00021917,7]
[335521920,1724301067908,-500.0,0.00021917,7]
[335521921,1724301067921,-501.82,0.00021917,7]
[335521922,1724301067931,-990.24,0.00021917,7]
[335521923,1724301067944,-500.0,0.00021917,7]
[335521924,1724301067955,-500.0,0.00021917,7]
[335521925,1724301067965,-500.0,0.00021917,7]
[335521926,1724301067977,-500.0,0.00021917,7]
[335521927,1724301067989,-619.67,0.00021917,7]
[335521928,1724301068000,-500.0,0.00021917,7]
[335521929,1724301068012,-500.0,0.00021917,7]
[335521930,1724301068022,-510.05,0.00021917,7]
[335521931,1724301068032,-500.0,0.00021917,7]
[335521932,1724301068042,-613.86,0.00021917,7]
[335521933,1724301068053,-500.0,0.00021917,7]
[335521934,1724301068063,-500.0,0.00021917,7]
[335521935,1724301068075,-500.0,0.00021917,7]
[335521936,1724301068087,-500.0,0.00021917,7]
[335521937,1724301068097,-500.0,0.00021917,7]
[335521938,1724301068107,-500.0,0.00021917,7]
[335521939,1724301068117,-500.0,0.00021917,7]
[335521940,1724301068127,-500.0,0.00021917,7]
[335521941,1724301068137,-500.0,0.00021917,7]
[335521942,1724301068147,-500.0,0.00021917,7]
[335521943,1724301068158,-500.0,0.00021917,7]
[335521944,1724301068168,-500.0,0.00021917,7]
[335521945,1724301068179,-500.0,0.00021917,7]
[335521946,1724301068189,-509.32,0.00021917,7]
[335521947,1724301068199,-695.3,0.00021917,7]
[335521948,1724301068208,-944.99,0.00021917,7]
[335521949,1724301068218,-500.0,0.00021917,7]
[335521950,1724301068228,-505.0,0.00021917,7]
[335521951,1724301068240,-500.0,0.00021917,7]
[335521952,1724301068251,-500.0,0.00021917,7]
[335521953,1724301068261,-500.0,0.00021917,7]
[335521954,1724301068273,-500.0,0.00021917,7]
[335521955,1724301068283,-500.0,0.00021917,7]
[335521956,1724301068294,-500.0,0.00021917,7]
[335521957,1724301068304,-444.5586307,0.00021917,7]
[335521958,1724301068314,-500.0,0.00021917,7]
[335521959,1724301068323,-500.0,0.00021917,7]
[335521960,1724301068333,-500.0,0.00021917,7]
[335521961,1724301068342,-500.0,0.00021917,7]
[335521962,1724301068354,-500.0,0.00021917,7]
[335521963,1724301068365,-509.2761114,0.00021917,7]
[335521964,1724301068376,-500.0,0.00021917,7]
[335521965,1724301068386,-151.51396529,0.00021917,7]
[335521966,1724301068396,-500.0,0.00021917,7]
[335521967,1724301068405,-500.0,0.00021917,7]
[335521968,1724301068417,-500.0,0.00021917,7]
[335521969,1724301068429,-500.0,0.00021917,7]
[335521970,1724301068438,-500.0,0.00021917,7]
[335521971,1724301068449,-500.0,0.00021917,7]
[335521972,1724301068459,-2489.9,0.00021917,7]
[335521973,1724301068471,-500.0,0.00021917,7]
[335521974,1724301068482,-500.0,0.00021917,7]
[335521975,1724301068492,-500.0,0.00021917,7]
[335521976,1724301068503,-500.0,0.00021917,7]
[335521977,1724301068513,-500.0,0.00021917,7]
[335521978,1724301068523,-500.0,0.00021917,7]
[335521979,1724301068533,-518.99,0.00021917,7]
[335521980,1724301068546,-500.0,0.00021917,7]
[335521981,1724301068557,-821.02,0.00021917,7]
[335521982,1724301068567,-500.0,0.00021917,7]
[335521983,1724301068577,-500.0,0.00021917,7]
[335521984,1724301068587,-500.0,0.00021917,7]
[335521985,1724301068596,-500.0,0.00021917,7]
[335521986,1724301068606,-576.78,0.00021917,7]
[335521987,1724301068616,-500.0,0.00021917,7]
[335521988,1724301068626,-500.0,0.00021917,7]
[335521989,1724301068636,-500.0,0.00021917,7]
[335521990,1724301068649,-500.0,0.00021917,7]
[335521991,1724301068659,-844.9,0.00021917,7]
[335521992,1724301068668,-500.0,0.00021917,7]
[335521993,1724301068678,-604.62,0.00021917,7]
[335521994,1724301068691,-500.0,0.00021917,7]
[335521995,1724301068701,-500.0,0.00021917,7]
[335521996,1724301068710,-500.0,0.00021917,7]
[335521997,1724301068721,-500.0,0.00021917,7]
[335521998,1724301068731,-500.0,0.00021917,7]
[335521999,1724301068740,-179.41593773,0.00021917,7]
[335522000,1724301069233,2383.1547921,9.481e-05,2]
[335522001,1724301069747,-42424.00214827,0.00010544,2]
[335522002,1724301069758,-2143.43585731,0.00010544,2]
[335522003,1724301069770,-155.22826621,0.00010739,2]
[335522004,1724301069783,-215.62694452,0.00010739,2]
[335522005,1724301069792,-154.81862306,0.00010958,2]
[335522006,1724301069803,-154.74467129,0.00010958,2]
[335522007,1724301069815,-161.84,0.00010959,2]
[335522008,1724301069825,-210.30219425,0.00012971,2]
[335522009,1724301069837,-817.77880387,0.00012999,2]
[335522010,1724301069847,-179.308119,0.00013699,2]
[335522011,1724301069857,-179.308119,0.00013699,2]
[335522012,1724301069866,-179.308119,0.00013699,2]
[335522013,1724301069875,-179.308119,0.00013699,2]
[335522014,1724301069886,-179.308119,0.00013699,2]
[335522015,1724301069895,-179.308119,0.00015068,2]
[335522016,1724301069904,-179.308119,0.00019178,2]
[335522017,1724301069913,-179.308119,0.00019178,2]
[335522018,1724301069923,-179.308119,0.00019178,2]
[335522019,1724301069933,-179.308119,0.00019178,2]
[335522020,1724301069943,-179.308119,0.00019178,2]
[335522021,1724301069954,-179.308119,0.00019178,2]
[335522022,1724301069967,-179.308119,0.00019178,2]
[335522023,1724301069978,-18990.21325221,0.00020199,2]
[335522024,1724301070873,-174.88857083,0.00010958,2]
[335522025,1724301070882,-151.0,0.00013699,2]
[335522026,1724301070894,-179.308128,0.00019178,2]
[335522027,1724301070904,-81009.78674779,0.00020199,2]
[335522028,1724301070914,-500.0,0.00020273,7]
[335522029,1724301070924,-500.0,0.00020821,7]
[335522030,1724301070934,-555.27,0.00021369,7]
[335522031,1724301070943,-500.0,0.00021369,7]
[335522032,1724301070953,-1976.75406227,0.00021917,7]
[335522033,1724301070963,-500.0,0.00021917,7]
[335522034,1724301070973,-500.0,0.00021917,7]
[335522035,1724301070984,-483.94370878,0.00021917,7]
[335522036,1724301070994,-500.0,0.00021917,7]
[335522037,1724301071004,-537.9,0.00021917,7]
[335522038,1724301071014,-500.0,0.00021917,7]
[335522039,1724301071024,-500.0,0.00021917,7]
[335522040,1724301071035,-500.0,0.00021917,7]
[335522041,1724301071045,-598.79,0.00021917,7]
[335522042,1724301071054,-586.0,0.00021917,7]
[335522043,1724301071063,-500.0,0.00021917,7]
[335522044,1724301071073,-500.0,0.00021917,7]
[335522045,1724301071083,-729.05,0.00021917,7]
[335522046,1724301071092,-500.0,0.00021917,7]
[335522047,1724301071102,-638.49,0.00021917,7]
[335522048,1724301071112,-500.0,0.00021917,7]
[335522049,1724301071122,-500.0,0.00021917,7]
[335522050,1724301071131,-598.56,0.00021917,7]
[335522051,1724301071141,-865.41,0.00021917,7]
[335522052,1724301071150,-500.0,0.00021917,7]
[335522053,1724301071159,-500.0,0.00021917,7]
[335522054,1724301071169,-1875.93,0.00021917,7]
[335522055,1724301071178,-500.0,0.00021917,7]
[335522056,1724301071188,-500.0,0.00021917,7]
[335522057,1724301071197,-859.92,0.00021917,7]
[335522058,1724301071207,-500.0,0.00021917,7]
[335522059,1724301071216,-500.0,0.00021917,7]
[335522060,1724301071225,-727.29,0.00021917,7]
[335522061,1724301071234,-500.0,0.00021917,7]
[335522062,1724301071244,-500.0,0.00021917,7]
[335522063,1724301071253,-560.76,0.00021917,7]
[335522064,1724301071262,-500.0,0.00021917,7]
[335522065,1724301071271,-500.0,0.00021917,7]
[335522066,1724301071281,-500.0,0.00021917,7]
[335522067,1724301071290,-500.0,0.00021917,7]
[335522068,1724301071299,-500.0,0.00021917,7]
[335522069,1724301071308,-500.0,0.00021917,7]
[335522070,1724301071317,-500.0,0.00021917,7]
[335522071,1724301071327,-500.0,0.00021917,7]
[335522072,1724301071336,-556.39196071,0.00021917,7]
[335522073,1724301071345,-506.92125014,0.00021917,7]
[335522074,1724301071354,-2365.95,0.00021917,7]
[335522075,1724301071363,-500.0,0.00021917,7]
[335522076,1724301071374,-500.0,0.00021917,7]
[335522077,1724301071383,-2542.88,0.00021917,7]
[335522078,1724301071392,-500.0,0.00021917,7]
[335522079,1724301071400,-500.0,0.00021917,7]
[335522080,1724301071410,-626.6,0.00021917,7]
[335522081,1724301071419,-500.0,0.00021917,7]
[335522082,1724301071429,-500.0,0.00021917,7]
[335522083,1724301071438,-500.0,0.00021917,7]
[335522084,1724301071447,-500.0,0.00021917,7]
[335522085,1724301071456,-500.0,0.00021917,7]
[335522086,1724301071465,-500.0,0.00021917,7]
[335522087,1724301071476,-500.0,0.00021917,7]
[335522088,1724301071485,-745.34,0.00021917,7]
[335522089,1724301071495,-1229.2,0.00021917,7]
[335522090,1724301071505,-500.0,0.00021917,7]
[335522091,1724301071514,-500.0,0.00021917,7]
[335522092,1724301071524,-500.0,0.00021917,7]
[335522093,1724301071533,-500.0,0.00021917,7]
[335522094,1724301071542,-500.0,0.00021917,7]
[335522095,1724301071552,-500.0,0.00021917,2]
[335522096,1724301071562,-1421.87,0.00021917,7]
[335522097,1724301071573,-500.0,0.00021917,7]
[335522098,1724301071584,-500.0,0.00021917,7]
[335522099,1724301071594,-500.0,0.00021917,7]
[335522100,1724301071606,-500.0,0.00021917,7]
[335522101,1724301071616,-500.0,0.00021917,7]
[335522102,1724301071627,-500.0,0.00021917,7]
[335522103,1724301071639,-500.0,0.00021917,7]
[335522104,1724301071652,-500.0,0.00021917,7]
[335522105,1724301071663,-500.0,0.00021917,7]
[335522106,1724301071673,-586.07,0.00021917,7]
[335522107,1724301071683,-500.0,0.00021917,7]
[335522108,1724301071692,-500.0,0.00021917,7]
[335522109,1724301071702,-500.0,0.00021917,7]
[335522110,1724301071711,-500.0,0.00021917,7]
[335522111,1724301071722,-500.0,0.00021917,7]
[335522112,1724301071731,-500.0,0.00021917,7]
[335522113,1724301071740,-500.0,0.00021917,7]
[335522114,1724301071750,-500.0,0.00021917,7]